[Event "*** Titled Tuesday Blitz"]
[Site "Chess.com"]
[Date "2021.02.09"]
[Round "3"]
[White "PlotnikovPavel"]
[Black "DvaHrasta"]
[Result "0-1"]
[WhiteElo "2554"]
[BlackElo "2406"]
[TimeControl "180+1"]
[EndTime "10:29:46 PST"]
[Termination "DvaHrasta won on time"]

1. e4 {[%clk 0:03:00.9]} 1... c6 {[%clk 0:02:59.6]} 2. d4 {[%clk 0:02:58.8]}
2... d5 {[%clk 0:02:59.3]} 3. e5 {[%clk 0:02:58.8]} 3... c5 {[%clk 0:02:59.3]}
4. c4 {[%clk 0:02:58.1]} 4... Nc6 {[%clk 0:02:56]} 5. Nf3 {[%clk 0:02:57.1]}
5... Bg4 {[%clk 0:02:54.9]} 6. cxd5 {[%clk 0:02:43.2]} 6... Bxf3 {[%clk
0:02:51.6]} 7. Qxf3 {[%clk 0:02:35.3]} 7... Nxd4 {[%clk 0:02:45.7]} 8. Qe4
{[%clk 0:02:34.7]} 8... f5 {[%clk 0:02:43.6]} 9. Qd3 {[%clk 0:02:13.7]} 9...
Qxd5 {[%clk 0:02:43.1]} 10. Bf4 {[%clk 0:02:07.5]} 10... g5 {[%clk 0:02:22.6]}
11. Nc3 {[%clk 0:02:05.4]} 11... Qe6 {[%clk 0:02:11.4]} 12. Bxg5 {[%clk
0:02:05.1]} 12... Qxe5+ {[%clk 0:02:10.6]} 13. Be2 {[%clk 0:02:03.7]} 13... Rd8
{[%clk 0:01:57.1]} 14. O-O {[%clk 0:02:01.6]} 14... Nxe2+ {[%clk 0:01:56.4]} 15.
Qxe2 {[%clk 0:02:01.3]} 15... Qxe2 {[%clk 0:01:55.6]} 16. Nxe2 {[%clk
0:02:02.2]} 16... Bg7 {[%clk 0:01:55.3]} 17. Nf4 {[%clk 0:01:59.1]} 17... Rd6
{[%clk 0:01:43.5]} 18. Rfe1 {[%clk 0:01:54.4]} 18... Kf7 {[%clk 0:01:37.6]} 19.
Rac1 {[%clk 0:01:50.5]} 19... b6 {[%clk 0:01:36.1]} 20. b4 {[%clk 0:01:50.2]}
20... Rc6 {[%clk 0:01:25]} 21. bxc5 {[%clk 0:01:47]} 21... bxc5 {[%clk
0:01:22.8]} 22. Nd3 {[%clk 0:01:37.1]} 22... c4 {[%clk 0:01:17.1]} 23. Nb4
{[%clk 0:01:36.6]} 23... Rc5 {[%clk 0:01:12.8]} 24. Be3 {[%clk 0:01:35.3]} 24...
Rc8 {[%clk 0:01:10.4]} 25. Bxa7 {[%clk 0:01:32.1]} 25... Nf6 {[%clk 0:01:09.6]}
26. Rc2 {[%clk 0:01:24.1]} 26... Rhd8 {[%clk 0:01:06.2]} 27. f3 {[%clk
0:01:21.5]} 27... Rd7 {[%clk 0:01:04.7]} 28. Be3 {[%clk 0:01:15.8]} 28... Nd5
{[%clk 0:01:02.9]} 29. Nxd5 {[%clk 0:01:12.8]} 29... Rxd5 {[%clk 0:01:02.9]} 30.
Rec1 {[%clk 0:01:11.8]} 30... c3 {[%clk 0:01:02.5]} 31. a4 {[%clk 0:01:10.2]}
31... Ra5 {[%clk 0:01:00.5]} 32. Ra1 {[%clk 0:01:00.5]} 32... Rc4 {[%clk
0:00:59.5]} 33. Rca2 {[%clk 0:00:56.5]} 33... e5 {[%clk 0:00:51.5]} 34. Bb6
{[%clk 0:00:55.4]} 34... Ra6 {[%clk 0:00:51.6]} 35. a5 {[%clk 0:00:55.2]} 35...
e4 {[%clk 0:00:49.5]} 36. fxe4 {[%clk 0:00:50]} 36... fxe4 {[%clk 0:00:49.4]}
37. Ra4 {[%clk 0:00:44.9]} 37... Rc6 {[%clk 0:00:35.2]} 38. Rc1 {[%clk
0:00:41.4]} 38... Rcxb6 {[%clk 0:00:31.4]} 39. Rxe4 {[%clk 0:00:35.1]} 39...
Rxa5 {[%clk 0:00:28.7]} 40. Rf1+ {[%clk 0:00:33.8]} 40... Rf6 {[%clk 0:00:27.2]}
41. Rxf6+ {[%clk 0:00:32.3]} 41... Bxf6 {[%clk 0:00:26.2]} 42. Rc4 {[%clk
0:00:33.2]} 42... Ke6 {[%clk 0:00:24.7]} 43. Kf2 {[%clk 0:00:34.1]} 43... Kd5
{[%clk 0:00:24.6]} 44. Rc8 {[%clk 0:00:35]} 44... Rc5 {[%clk 0:00:23.9]} 45.
Rd8+ {[%clk 0:00:33.9]} 45... Kc4 {[%clk 0:00:23.4]} 46. Rd6 {[%clk 0:00:31.9]}
46... Bd4+ {[%clk 0:00:20.5]} 47. Ke2 {[%clk 0:00:31.5]} 47... Ra5 {[%clk
0:00:18.5]} 48. Rc6+ {[%clk 0:00:30.7]} 48... Bc5 {[%clk 0:00:18.7]} 49. Re6
{[%clk 0:00:29.4]} 49... Ra2+ {[%clk 0:00:18.7]} 50. Kf3 {[%clk 0:00:29]} 50...
c2 {[%clk 0:00:18.4]} 51. Re4+ {[%clk 0:00:28.4]} 51... Bd4 {[%clk 0:00:18]} 52.
Re2 {[%clk 0:00:25.9]} 52... Ra3+ {[%clk 0:00:16.7]} 53. Ke4 {[%clk 0:00:25.3]}
53... c1=Q {[%clk 0:00:16.4]} 54. Rc2+ {[%clk 0:00:24.5]} 54... Qxc2+ {[%clk
0:00:16.5]} 0-1

[Event "*** Titled Tuesday Blitz"]
[Site "Chess.com"]
[Date "2021.02.09"]
[Round "3"]
[White "Alexchess1984"]
[Black "amintabatabaei"]
[Result "1-0"]
[WhiteElo "2700"]
[BlackElo "2932"]
[TimeControl "180+1"]
[EndTime "10:29:49 PST"]
[Termination "Alexchess1984 won by checkmate"]

1. e4 {[%clk 0:03:00.9]} 1... g6 {[%clk 0:02:54.5]} 2. Nc3 {[%clk 0:02:58.6]}
2... d6 {[%clk 0:02:54.2]} 3. d4 {[%clk 0:02:57.1]} 3... a6 {[%clk 0:02:54]} 4.
a4 {[%clk 0:02:54.1]} 4... Nf6 {[%clk 0:02:53.5]} 5. h3 {[%clk 0:02:52.3]} 5...
Bg7 {[%clk 0:02:52.2]} 6. Nf3 {[%clk 0:02:52.6]} 6... O-O {[%clk 0:02:52]} 7.
Bg5 {[%clk 0:02:52.2]} 7... Nc6 {[%clk 0:02:50.7]} 8. Qd2 {[%clk 0:02:48.6]}
8... Rb8 {[%clk 0:02:44.2]} 9. a5 {[%clk 0:02:39.4]} 9... Re8 {[%clk 0:02:38.7]}
10. Be2 {[%clk 0:02:34.2]} 10... e5 {[%clk 0:02:29.2]} 11. dxe5 {[%clk
0:02:33.4]} 11... Nxe5 {[%clk 0:02:09.3]} 12. O-O {[%clk 0:02:31.2]} 12... Nxf3+
{[%clk 0:02:02.7]} 13. Bxf3 {[%clk 0:02:31]} 13... Be6 {[%clk 0:02:01.9]} 14.
Rfe1 {[%clk 0:02:10]} 14... Qc8 {[%clk 0:01:59.3]} 15. Nd5 {[%clk 0:01:59.9]}
15... Bxd5 {[%clk 0:01:56.7]} 16. exd5 {[%clk 0:01:58.3]} 16... Qf5 {[%clk
0:01:55.7]} 17. Bxf6 {[%clk 0:01:51.3]} 17... Bxf6 {[%clk 0:01:54.8]} 18. c3
{[%clk 0:01:51.8]} 18... h5 {[%clk 0:01:47.7]} 19. Re2 {[%clk 0:01:36.5]} 19...
Bg5 {[%clk 0:01:36.1]} 20. Qc2 {[%clk 0:01:24.3]} 20... Qf4 {[%clk 0:01:13.2]}
21. Rae1 {[%clk 0:01:20.5]} 21... Rxe2 {[%clk 0:01:13.7]} 22. Rxe2 {[%clk
0:01:14.8]} 22... h4 {[%clk 0:01:14.6]} 23. Re4 {[%clk 0:01:12.9]} 23... Qf5
{[%clk 0:01:11.3]} 24. Qd3 {[%clk 0:01:04.6]} 24... Kg7 {[%clk 0:00:47.6]} 25.
Qc4 {[%clk 0:00:59.3]} 25... Rc8 {[%clk 0:00:36.6]} 26. Bg4 {[%clk 0:00:56.8]}
26... Qxe4 {[%clk 0:00:22.1]} 27. Qxe4 {[%clk 0:00:55.7]} 27... Rf8 {[%clk
0:00:23]} 28. Qd4+ {[%clk 0:00:46.7]} 28... Bf6 {[%clk 0:00:23]} 29. Qb4 {[%clk
0:00:46.7]} 29... Re8 {[%clk 0:00:23.3]} 30. Kf1 {[%clk 0:00:46.6]} 30... Bg5
{[%clk 0:00:21.9]} 31. f4 {[%clk 0:00:44]} 31... Bh6 {[%clk 0:00:20.2]} 32. Kf2
{[%clk 0:00:30.5]} 32... Re7 {[%clk 0:00:19.5]} 33. Bf3 {[%clk 0:00:27.2]} 33...
f5 {[%clk 0:00:18]} 34. g4 {[%clk 0:00:25.1]} 34... hxg3+ {[%clk 0:00:17.7]} 35.
Kxg3 {[%clk 0:00:25.6]} 35... g5 {[%clk 0:00:15.6]} 36. fxg5 {[%clk 0:00:23.3]}
36... Bxg5 {[%clk 0:00:16.5]} 37. Qxb7 {[%clk 0:00:22.9]} 37... f4+ {[%clk
0:00:11.3]} 38. Kg4 {[%clk 0:00:22]} 38... Kh6 {[%clk 0:00:11.2]} 39. Qc8 {[%clk
0:00:19.4]} 39... Bf6 {[%clk 0:00:10.1]} 40. Kf5 {[%clk 0:00:17.6]} 40... Be5
{[%clk 0:00:09.2]} 41. Qf8+ {[%clk 0:00:15.8]} 41... Rg7 {[%clk 0:00:09.4]} 42.
h4 {[%clk 0:00:15]} 42... Kh7 {[%clk 0:00:09]} 43. h5 {[%clk 0:00:13.5]} 43...
Rg8 {[%clk 0:00:09.3]} 44. Qf7+ {[%clk 0:00:10]} 44... Rg7 {[%clk 0:00:09.6]}
45. Qe8 {[%clk 0:00:10.3]} 45... Rg8 {[%clk 0:00:09.8]} 46. Qc6 {[%clk
0:00:10.5]} 46... Rg7 {[%clk 0:00:09]} 47. Qxa6 {[%clk 0:00:10]} 47... Rg3
{[%clk 0:00:08.9]} 48. Qd3 {[%clk 0:00:09.5]} 48... Kh6 {[%clk 0:00:08.9]} 49.
a6 {[%clk 0:00:09.9]} 49... Rg8 {[%clk 0:00:07.5]} 50. a7 {[%clk 0:00:10.1]}
50... Rf8+ {[%clk 0:00:05.8]} 51. Ke6 {[%clk 0:00:09.7]} 51... Ra8 {[%clk
0:00:06.1]} 52. Qg6# {[%clk 0:00:09.3]} 1-0

[Event "*** Titled Tuesday Blitz"]
[Site "Chess.com"]
[Date "2021.02.09"]
[Round "3"]
[White "Happy1712Drummer"]
[Black "AttilaTurzo"]
[Result "1-0"]
[WhiteElo "2378"]
[BlackElo "2520"]
[TimeControl "180+1"]
[EndTime "10:29:50 PST"]
[Termination "Happy1712Drummer won by resignation"]

1. Nf3 {[%clk 0:02:56.5]} 1... d5 {[%clk 0:02:59.8]} 2. d4 {[%clk 0:02:55.2]}
2... c6 {[%clk 0:03:00.7]} 3. e3 {[%clk 0:02:54]} 3... Nf6 {[%clk 0:03:00.8]} 4.
c4 {[%clk 0:02:53.7]} 4... Bf5 {[%clk 0:03:00.7]} 5. Nc3 {[%clk 0:02:53.2]} 5...
e6 {[%clk 0:03:01.2]} 6. Bd3 {[%clk 0:02:52.1]} 6... Bg6 {[%clk 0:03:00.1]} 7.
Qe2 {[%clk 0:02:49.5]} 7... Bb4 {[%clk 0:02:58.1]} 8. Bd2 {[%clk 0:02:48.7]}
8... Nbd7 {[%clk 0:02:56.6]} 9. O-O {[%clk 0:02:48.4]} 9... O-O {[%clk
0:02:53.3]} 10. Nxd5 {[%clk 0:02:44]} 10... Nxd5 {[%clk 0:02:36.5]} 11. cxd5
{[%clk 0:02:41.6]} 11... Bxd2 {[%clk 0:02:36.5]} 12. dxe6 {[%clk 0:02:39.1]}
12... Bxe3 {[%clk 0:02:04.8]} 13. Qxe3 {[%clk 0:02:33.1]} 13... fxe6 {[%clk
0:02:01.5]} 14. Bxg6 {[%clk 0:02:31.8]} 14... hxg6 {[%clk 0:01:59.9]} 15. Qxe6+
{[%clk 0:02:29.4]} 15... Kh7 {[%clk 0:01:59.3]} 16. d5 {[%clk 0:02:18.5]} 16...
cxd5 {[%clk 0:01:44.7]} 17. Qxd5 {[%clk 0:02:07.5]} 17... Nf6 {[%clk 0:01:39.4]}
18. Ng5+ {[%clk 0:01:58.2]} 18... Kh8 {[%clk 0:01:34]} 19. Qxd8 {[%clk
0:01:53.5]} 19... Raxd8 {[%clk 0:01:32.4]} 20. Ne6 {[%clk 0:01:53.1]} 20... Rfe8
{[%clk 0:01:32.4]} 21. Nxd8 {[%clk 0:01:50.7]} 21... Rxd8 {[%clk 0:01:33.3]} 22.
Rfd1 {[%clk 0:01:50.8]} 22... Re8 {[%clk 0:01:30.3]} 23. Kf1 {[%clk 0:01:49.3]}
23... Kg8 {[%clk 0:01:28.4]} 24. Rac1 {[%clk 0:01:44.4]} 24... Re7 {[%clk
0:01:28.6]} 25. f3 {[%clk 0:01:42.4]} 25... Kf7 {[%clk 0:01:28.2]} 26. Kf2
{[%clk 0:01:37.2]} 26... b6 {[%clk 0:01:24.6]} 27. Rd6 {[%clk 0:01:33.6]} 27...
Ne8 {[%clk 0:01:23.1]} 28. Rdc6 {[%clk 0:01:30.8]} 28... Rd7 {[%clk 0:01:22.4]}
29. R1c2 {[%clk 0:01:29.8]} 29... Rd1 {[%clk 0:01:21.2]} 30. h4 {[%clk 0:01:27]}
30... Ra1 {[%clk 0:01:19.7]} 31. a3 {[%clk 0:01:25.7]} 31... Rh1 {[%clk
0:01:18.9]} 32. Kg3 {[%clk 0:01:22.9]} 32... Re1 {[%clk 0:01:18.5]} 33. Kf2
{[%clk 0:01:09.6]} 33... Rh1 {[%clk 0:01:18.1]} 34. R6c4 {[%clk 0:01:06.7]}
34... Rd1 {[%clk 0:01:16.6]} 35. Ke2 {[%clk 0:01:02.8]} 35... Rg1 {[%clk
0:01:15.7]} 36. g4 {[%clk 0:01:00]} 36... Rh1 {[%clk 0:01:14.5]} 37. g5 {[%clk
0:00:59.4]} 37... Rh2+ {[%clk 0:01:11.9]} 38. Ke3 {[%clk 0:00:55.8]} 38... Rh1
{[%clk 0:01:10.8]} 39. Rc7+ {[%clk 0:00:52]} 39... Nxc7 {[%clk 0:01:08.2]} 40.
Rxc7+ {[%clk 0:00:52.2]} 40... Ke6 {[%clk 0:01:08.1]} 41. Rxg7 {[%clk
0:00:48.9]} 41... Kf5 {[%clk 0:01:03.7]} 42. Rf7+ {[%clk 0:00:47.7]} 42... Ke5
{[%clk 0:01:03]} 43. Rxa7 {[%clk 0:00:44.8]} 43... Rxh4 {[%clk 0:00:57.5]} 44.
Ra6 {[%clk 0:00:38.3]} 44... b5 {[%clk 0:00:52.7]} 45. Rxg6 {[%clk 0:00:34.4]}
45... b4 {[%clk 0:00:51.1]} 46. f4+ {[%clk 0:00:25.5]} 46... Kd5 {[%clk
0:00:42.1]} 47. axb4 {[%clk 0:00:24.6]} 47... Rh3+ {[%clk 0:00:41.8]} 48. Kf2
{[%clk 0:00:24.6]} 48... Rb3 {[%clk 0:00:42.5]} 49. Rf6 {[%clk 0:00:23.3]} 49...
Ke4 {[%clk 0:00:42.5]} 50. g6 {[%clk 0:00:21.9]} 50... Rxb2+ {[%clk 0:00:41.7]}
51. Kg3 {[%clk 0:00:21.3]} 51... Rxb4 {[%clk 0:00:42.6]} 52. g7 {[%clk
0:00:20.4]} 52... Rb1 {[%clk 0:00:41.1]} 53. Kh2 {[%clk 0:00:19.4]} 53... Rb2+
{[%clk 0:00:40.8]} 54. Kh3 {[%clk 0:00:19.2]} 54... Rb1 {[%clk 0:00:41.7]} 55.
g8=Q {[%clk 0:00:15.8]} 55... Kf3 {[%clk 0:00:41.8]} 56. Qd5+ {[%clk 0:00:13.7]}
56... Ke3 {[%clk 0:00:41.3]} 57. Qe5+ {[%clk 0:00:13.1]} 57... Kf3 {[%clk
0:00:40.8]} 58. Qc3+ {[%clk 0:00:12.9]} 58... Ke4 {[%clk 0:00:37.1]} 59. Qc2+
{[%clk 0:00:13.4]} 59... Kf3 {[%clk 0:00:36.5]} 60. Qxb1 {[%clk 0:00:13.8]}
60... Kf2 {[%clk 0:00:37.4]} 61. Qc2+ {[%clk 0:00:13.2]} 61... Kf3 {[%clk
0:00:37.5]} 62. f5 {[%clk 0:00:13.5]} 62... Kf4 {[%clk 0:00:37.4]} 63. Rg6
{[%clk 0:00:12.6]} 63... Ke5 {[%clk 0:00:37]} 64. Rg1 {[%clk 0:00:13.2]} 64...
Kf6 {[%clk 0:00:34.8]} 65. Qg2 {[%clk 0:00:13.5]} 65... Kxf5 {[%clk 0:00:33.7]}
66. Qg4+ {[%clk 0:00:12.9]} 66... Ke5 {[%clk 0:00:33.6]} 67. Rf1 {[%clk
0:00:13.2]} 67... Kd5 {[%clk 0:00:33.3]} 68. Qe2 {[%clk 0:00:13.7]} 68... Kd4
{[%clk 0:00:33.1]} 69. Rd1+ {[%clk 0:00:13.9]} 69... Kc3 {[%clk 0:00:34]} 70.
Qd3+ {[%clk 0:00:13.9]} 70... Kb2 {[%clk 0:00:33.4]} 71. Rb1+ {[%clk 0:00:14.2]}
1-0

[Event "*** Titled Tuesday Blitz"]
[Site "Chess.com"]
[Date "2021.02.09"]
[Round "3"]
[White "Natalya_Buksa"]
[Black "Slovak_fighter2000"]
[Result "1-0"]
[WhiteElo "2567"]
[BlackElo "2390"]
[TimeControl "180+1"]
[EndTime "10:29:51 PST"]
[Termination "Natalya_Buksa won on time"]

1. d4 {[%clk 0:02:59.6]} 1... Nf6 {[%clk 0:02:59.5]} 2. Nc3 {[%clk 0:02:59.4]}
2... e6 {[%clk 0:02:58.8]} 3. e4 {[%clk 0:02:59]} 3... d5 {[%clk 0:02:58.9]} 4.
e5 {[%clk 0:02:58]} 4... Nfd7 {[%clk 0:02:59]} 5. f4 {[%clk 0:02:58.9]} 5... c5
{[%clk 0:02:59.3]} 6. Be3 {[%clk 0:02:59.8]} 6... Be7 {[%clk 0:02:59.4]} 7. Nf3
{[%clk 0:03:00.7]} 7... Nc6 {[%clk 0:02:58.8]} 8. dxc5 {[%clk 0:02:59.4]} 8...
Bxc5 {[%clk 0:02:57.5]} 9. Nd4 {[%clk 0:03:00.3]} 9... a6 {[%clk 0:02:53]} 10.
Qd2 {[%clk 0:02:59.1]} 10... Nxd4 {[%clk 0:02:51.7]} 11. Bxd4 {[%clk 0:02:59]}
11... b5 {[%clk 0:02:52.3]} 12. O-O-O {[%clk 0:02:57.1]} 12... Qb6 {[%clk
0:02:51.6]} 13. h4 {[%clk 0:02:51.9]} 13... Bxd4 {[%clk 0:02:42.2]} 14. Qxd4
{[%clk 0:02:52.8]} 14... b4 {[%clk 0:02:39.4]} 15. Ne2 {[%clk 0:02:49.1]} 15...
a5 {[%clk 0:02:39.2]} 16. Qxb6 {[%clk 0:02:45.8]} 16... Nxb6 {[%clk 0:02:37.6]}
17. Nd4 {[%clk 0:02:46.7]} 17... Ba6 {[%clk 0:02:34.8]} 18. f5 {[%clk
0:02:46.7]} 18... Ke7 {[%clk 0:02:30.6]} 19. g4 {[%clk 0:02:40.3]} 19... Bxf1
{[%clk 0:02:20.9]} 20. Rhxf1 {[%clk 0:02:39.8]} 20... Nc4 {[%clk 0:02:21.5]} 21.
Rde1 {[%clk 0:02:38.3]} 21... Rac8 {[%clk 0:02:08.6]} 22. g5 {[%clk 0:02:38]}
22... h6 {[%clk 0:01:47.4]} 23. g6 {[%clk 0:02:33.9]} 23... fxg6 {[%clk
0:01:27.4]} 24. f6+ {[%clk 0:02:28.5]} 24... gxf6 {[%clk 0:01:20.2]} 25. exf6+
{[%clk 0:02:29.4]} 25... Kf7 {[%clk 0:01:19.9]} 26. Rxe6 {[%clk 0:02:27.4]}
26... Rhe8 {[%clk 0:01:12.2]} 27. Ra6 {[%clk 0:02:25.8]} 27... Rc7 {[%clk
0:01:06.7]} 28. Nb5 {[%clk 0:02:24.3]} 28... Rd7 {[%clk 0:00:46.2]} 29. b3
{[%clk 0:02:22.8]} 29... Ne3 {[%clk 0:00:45.4]} 30. Re1 {[%clk 0:02:17]} 30...
Nf5 {[%clk 0:00:41.1]} 31. Rxe8 {[%clk 0:02:03.7]} 31... Kxe8 {[%clk 0:00:41.9]}
32. Rxa5 {[%clk 0:02:03.5]} 32... Kf7 {[%clk 0:00:41.8]} 33. a4 {[%clk
0:01:54.5]} 33... bxa3 {[%clk 0:00:41.2]} 34. Rxa3 {[%clk 0:01:50.8]} 34... Kxf6
{[%clk 0:00:37.7]} 35. Ra4 {[%clk 0:01:49.9]} 35... g5 {[%clk 0:00:35.7]} 36.
hxg5+ {[%clk 0:01:49.1]} 36... Kxg5 {[%clk 0:00:36.6]} 37. Nd4 {[%clk
0:01:44.1]} 37... Nxd4 {[%clk 0:00:33.2]} 38. Rxd4 {[%clk 0:01:45]} 38... Kf5
{[%clk 0:00:29.8]} 39. Kd2 {[%clk 0:01:38.6]} 39... Ke5 {[%clk 0:00:29.7]} 40.
Rh4 {[%clk 0:01:38.9]} 40... Rh7 {[%clk 0:00:30]} 41. Rh5+ {[%clk 0:01:37.1]}
41... Ke4 {[%clk 0:00:30.5]} 42. c3 {[%clk 0:01:37.1]} 42... Rh8 {[%clk
0:00:29]} 43. b4 {[%clk 0:01:36.4]} 43... Rh7 {[%clk 0:00:27.2]} 44. Rh4+ {[%clk
0:01:36.8]} 44... Ke5 {[%clk 0:00:27.4]} 45. Rh5+ {[%clk 0:01:33]} 45... Ke4
{[%clk 0:00:27]} 46. Kc2 {[%clk 0:01:33.3]} 46... Rh8 {[%clk 0:00:18.5]} 47. Kb3
{[%clk 0:01:32.1]} 47... d4 {[%clk 0:00:15.2]} 48. Rh4+ {[%clk 0:01:30.8]} 48...
Kf5 {[%clk 0:00:15.5]} 49. Rxd4 {[%clk 0:01:30.4]} 49... h5 {[%clk 0:00:16]} 50.
Rh4 {[%clk 0:01:27.5]} 50... Kg5 {[%clk 0:00:16.3]} 51. Rh1 {[%clk 0:01:28.1]}
51... h4 {[%clk 0:00:16.6]} 52. b5 {[%clk 0:01:27.7]} 52... Kf5 {[%clk
0:00:15.9]} 53. Kb4 {[%clk 0:01:26.6]} 53... Ke5 {[%clk 0:00:15.6]} 54. Rh3
{[%clk 0:01:25.9]} 54... Kd6 {[%clk 0:00:15.7]} 55. c4 {[%clk 0:01:26]} 55...
Rh5 {[%clk 0:00:15.4]} 56. Rd3+ {[%clk 0:01:21.4]} 56... Kc7 {[%clk 0:00:15.4]}
57. Rh3 {[%clk 0:00:57.6]} 57... Kb6 {[%clk 0:00:14.7]} 58. Rf3 {[%clk
0:00:53.7]} 58... h3 {[%clk 0:00:13.9]} 59. c5+ {[%clk 0:00:54.1]} 59... Kc7
{[%clk 0:00:12]} 60. b6+ {[%clk 0:00:53.8]} 60... Kc6 {[%clk 0:00:11.1]} 61.
Rf6+ {[%clk 0:00:53.9]} 61... Kb7 {[%clk 0:00:11]} 62. Rf7+ {[%clk 0:00:50.2]}
62... Kc8 {[%clk 0:00:06.2]} 63. c6 {[%clk 0:00:50.5]} 63... Kd8 {[%clk
0:00:04]} 64. b7 {[%clk 0:00:49.3]} 64... Ke8 {[%clk 0:00:03.9]} 65. Rf2 {[%clk
0:00:47.3]} 1-0

[Event "*** Titled Tuesday Blitz"]
[Site "Chess.com"]
[Date "2021.02.09"]
[Round "3"]
[White "ketster"]
[Black "SergeiAza"]
[Result "0-1"]
[WhiteElo "2453"]
[BlackElo "2754"]
[TimeControl "180+1"]
[EndTime "10:29:52 PST"]
[Termination "SergeiAza won by resignation"]

1. d4 {[%clk 0:03:00.9]} 1... f5 {[%clk 0:02:59.6]} 2. c4 {[%clk 0:03:01]} 2...
Nf6 {[%clk 0:02:59.8]} 3. Nc3 {[%clk 0:03:00.5]} 3... e6 {[%clk 0:03:00.1]} 4.
Qc2 {[%clk 0:02:58.3]} 4... Bb4 {[%clk 0:02:58.8]} 5. f3 {[%clk 0:02:54.5]} 5...
c5 {[%clk 0:02:53.5]} 6. dxc5 {[%clk 0:02:40.3]} 6... O-O {[%clk 0:02:47.1]} 7.
Be3 {[%clk 0:02:35.7]} 7... Qa5 {[%clk 0:02:34]} 8. Nh3 {[%clk 0:02:17.2]} 8...
Nc6 {[%clk 0:02:20.3]} 9. Nf4 {[%clk 0:01:47.9]} 9... Bxc5 {[%clk 0:02:10.3]}
10. Bd2 {[%clk 0:01:47.5]} 10... Qc7 {[%clk 0:01:53.7]} 11. Nd3 {[%clk
0:01:43.9]} 11... b6 {[%clk 0:01:48.8]} 12. e3 {[%clk 0:01:30]} 12... Bb7 {[%clk
0:01:43.9]} 13. Nxc5 {[%clk 0:01:20.6]} 13... bxc5 {[%clk 0:01:43.9]} 14. Be2
{[%clk 0:01:19.6]} 14... f4 {[%clk 0:01:26]} 15. O-O {[%clk 0:01:11.6]} 15...
fxe3 {[%clk 0:01:20.4]} 16. Bxe3 {[%clk 0:01:12.5]} 16... Qe5 {[%clk 0:01:20]}
17. Qd2 {[%clk 0:01:09.8]} 17... Nd4 {[%clk 0:01:14.6]} 18. Bxd4 {[%clk
0:00:49.1]} 18... Qxd4+ {[%clk 0:01:14.3]} 19. Qxd4 {[%clk 0:00:49.3]} 19...
cxd4 {[%clk 0:01:15.1]} 20. Nb5 {[%clk 0:00:49.8]} 20... e5 {[%clk 0:01:15.3]}
21. Nd6 {[%clk 0:00:48.3]} 21... Bc6 {[%clk 0:01:13]} 22. Bd3 {[%clk 0:00:48.5]}
22... Ne8 {[%clk 0:01:10.5]} 23. Ne4 {[%clk 0:00:42.7]} 23... Rb8 {[%clk
0:01:08.1]} 24. b3 {[%clk 0:00:42]} 24... a5 {[%clk 0:01:08.3]} 25. Rfe1 {[%clk
0:00:41.7]} 25... Nc7 {[%clk 0:01:06.3]} 26. Nd6 {[%clk 0:00:39.3]} 26... Rf6
{[%clk 0:01:02.2]} 27. c5 {[%clk 0:00:39.6]} 27... Re6 {[%clk 0:00:51.9]} 28.
Bc4 {[%clk 0:00:39.3]} 28... Bd5 {[%clk 0:00:52.3]} 29. Rac1 {[%clk 0:00:35.4]}
29... Rb4 {[%clk 0:00:43.7]} 30. Kf2 {[%clk 0:00:27.6]} 30... g6 {[%clk
0:00:40.1]} 31. Re2 {[%clk 0:00:24.9]} 31... Kg7 {[%clk 0:00:28.4]} 32. Rce1
{[%clk 0:00:25]} 32... Kf6 {[%clk 0:00:28.6]} 33. h4 {[%clk 0:00:24.9]} 33... a4
{[%clk 0:00:26.9]} 34. g4 {[%clk 0:00:22.6]} 34... Bxc4 {[%clk 0:00:21.4]} 35.
Nxc4 {[%clk 0:00:22.3]} 35... axb3 {[%clk 0:00:17.2]} 36. axb3 {[%clk
0:00:22.2]} 36... Rxb3 {[%clk 0:00:15.5]} 37. Rxe5 {[%clk 0:00:21.5]} 37... Rc3
{[%clk 0:00:12.1]} 38. Rxe6+ {[%clk 0:00:18.6]} 38... Nxe6 {[%clk 0:00:11.4]}
39. Nb6 {[%clk 0:00:15.3]} 39... Rc2+ {[%clk 0:00:10.6]} 40. Kg3 {[%clk
0:00:14.7]} 40... Nxc5 {[%clk 0:00:10]} 41. Rd1 {[%clk 0:00:09.7]} 41... d3
{[%clk 0:00:09.9]} 42. Nd5+ {[%clk 0:00:09.8]} 42... Ke5 {[%clk 0:00:08.1]} 43.
Nb4 {[%clk 0:00:10]} 43... Rc3 {[%clk 0:00:07.5]} 44. Re1+ {[%clk 0:00:09.7]}
44... Kd6 {[%clk 0:00:06.4]} 45. Kf4 {[%clk 0:00:07.9]} 45... Rc4+ {[%clk
0:00:05.7]} 46. Ke3 {[%clk 0:00:05]} 46... Rxb4 {[%clk 0:00:06]} 47. h5 {[%clk
0:00:05.6]} 47... Rb2 {[%clk 0:00:05.5]} 48. hxg6 {[%clk 0:00:04.2]} 48... hxg6
{[%clk 0:00:06.4]} 49. Rh1 {[%clk 0:00:04.3]} 49... Re2+ {[%clk 0:00:06.2]} 50.
Kf4 {[%clk 0:00:04.2]} 50... d2 {[%clk 0:00:06.8]} 51. Rd1 {[%clk 0:00:04.7]}
51... Nd3+ {[%clk 0:00:07.2]} 52. Kg3 {[%clk 0:00:05.2]} 52... Nb2 {[%clk
0:00:07.5]} 53. Rxd2+ {[%clk 0:00:06]} 53... Rxd2 {[%clk 0:00:07.6]} 54. f4
{[%clk 0:00:06.9]} 54... Rd5 {[%clk 0:00:07.9]} 55. f5 {[%clk 0:00:07.8]} 55...
gxf5 {[%clk 0:00:08]} 56. Kh4 {[%clk 0:00:08.7]} 56... fxg4 {[%clk 0:00:07.9]}
0-1